[Event "GER-ch Youth U12w 2019"]
[Site "Willingen"]
[Date "2019.06.12"]
[Round "5.8"]
[White "Adelmeyer, Nelly"]
[Black "Labuda, Annika"]
[Result "1-0"]
[ECO "D04"]
[WhiteElo "1420"]
[BlackElo "1251"]
[Annotator "NA"]
[PlyCount "91"]
[EventDate "2019.06.07"]
[EventType "swiss"]
[EventRounds "9"]
[EventCountry "GER"]
[SourceTitle "playchess.com"]
[Source "ChessBase"]
[SourceQuality "1"]
[TimeControl "40/4500+30:900+30"]

1. d4 d5 {[%emt 0:00:00]} 2. Nf3 {[%emt 0:00:00]} Nf6 {[%emt 0:00:00]} 3. e3 {[%emt 0:00:00]} c5 {[%emt 0:00:00]} 4. Bd3 {[%emt 0:00:00]} Qc7 {[%emt 0:00:00]} 5. b3 {[%emt 0:00:00]} Bg4 {[%emt 0:00:00]} 6. Nbd2 {[%emt 0:00:00]} e6 {[%emt 0:00:00]} 7. Bb2 {[%emt 0:00:00]} Bd6 {[%emt 0:00:00]} 8. h3 {[%emt 0:00:00]} Bxf3 {[%emt 0:00:00]} 9. Nxf3 {[%emt 0:00:00]} O-O {[%emt 0:00:00]} 10. O-O {[%emt 0:00:00]} Nbd7 {[%emt 0:00:00]} 11. c4 {[%emt 0:00:00]} Rac8 {[%emt 0:00:00]} 12. Qc2 {[%emt 0:00:00]} cxd4 {[%emt 0:00:00]} 13. exd4 {[%emt 0:00:00]} b6 {[%emt 0:00:00]} 14. Rfe1 {[%emt 0:00:00]} h6 {[%emt 0:00:00]} 15. Ne5 {[%emt 0:00:00]} Bb4 {[%emt 0:00:00]} 16. Re3 {[%emt 0:04:26]} dxc4 {[%emt 0:02:00]} 17. Qxc4 {[%emt 0:05:46]} Nxe5 {[%emt 0:01:53]} 18. dxe5 {[%emt 0:05:03]} Qxc4 {[%emt 0:00:42]} 19. Bxc4 {[%emt 0:00:22]} Nd5 {[%emt 0:02:15]} 20. Bxd5 {[%emt 0:06:19]} exd5 {[%emt 0:00:12]} 21. a3 {[%emt 0:00:58]} Be7 {[%emt 0:02:06]} 22. Rc1 {[%emt 0:05:43]} Rxc1+ {[%emt 0:00:38]} 23. Bxc1 {[%emt 0:00:05]} Bg5 {[%emt 0:00:09]} 24. Rc3 {[%emt 0:00:07]} Bxc1 {[%emt 0:00:09]} 25. Rxc1 {[%emt 0:00:03]} Re8 {[%emt 0:01:54]} 26. f4 {[%emt 0:00:17]} Re7 {[%emt 0:00:41]} 27. Rc6 {[%emt 0:01:02]} Rd7 {[%emt 0:00:36]} 28. Kf2 {[%emt 0:00:14]} Kf8 {[%emt 0:00:52]} 29. Ke3 {[%emt 0:00:40]} Ke7 {[%emt 0:01:18]} 30. Kd4 {[%emt 0:00:25]} f6 {[%emt 0:04:37]} 31. exf6+ {[%emt 0:03:03]} gxf6 {[%emt 0:00:09]} 32. f5 {[%emt 0:00:36]} Kf7 {[%emt 0:00:36]} 33. g4 {[%emt 0:05:13]} Kg7 {[%emt 0:00:47]} 34. h4 {[%emt 0:04:50]} Kf7 {[%emt 0:00:44]} 35. b4 {[%emt 0:00:59]} Kf8 {[%emt 0:11:13]} 36. Rxf6+ {[%emt 0:00:40]} Kg8 {[%emt 0:00:18]} 37. Rg6+ {[%emt 0:01:03]} Kh7 {[%emt 0:00:21]} 38. g5 {[%emt 0:00:06]} hxg5 {[%emt 0:01:21]} 39. hxg5 {[%emt 0:00:06]} b5 {[%emt 0:01:59]} 40. Re6 {[%emt 0:00:49]} Kg8 {[%emt 0:02:58]} 41. Re5 {[%emt 0:15:15]} Rc7 {[%emt 0:15:59]} 42. Kxd5 {[%emt 0:00:21]} Kf7 {[%emt 0:01:46]} 43. Kd6 {[%emt 0:00:25]} Rb7 {[%emt 0:00:19]} 44. Kc6 {[%emt 0:00:17]} Rb6+ {[%emt 0:00:38]} 45. Kc5 {[%emt 0:02:15]} Rb7 {[%emt 0:00:39]} 46. Re6 {[%emt 0:00:37] normal} 1-0

[Event "GER-ch Youth U12w 2019"]
[Site "Willingen"]
[Date "2019.06.12"]
[Round "5.9"]
[White "Glowiak, Alexandra"]
[Black "Peglau, Dora"]
[Result "1-0"]
[ECO "B41"]
[WhiteElo "1439"]
[BlackElo "1336"]
[Annotator "NA"]
[PlyCount "61"]
[EventDate "2019.06.07"]
[EventType "swiss"]
[EventRounds "9"]
[EventCountry "GER"]
[SourceTitle "playchess.com"]
[Source "ChessBase"]
[SourceQuality "1"]
[TimeControl "40/4500+30:900+30"]

1. e4 {[%emt 0:00:00]} c5 {[%emt 0:00:00]} 2. Nf3 {[%emt 0:00:00]} e6 {[%emt 0:00:00]} 3. d4 {[%emt 0:00:00]} cxd4 {[%emt 0:00:00]} 4. Nxd4 {[%emt 0:00:00]} a6 {[%emt 0:00:00]} 5. c4 {[%emt 0:00:00]} Nc6 {[%emt 0:00:00]} 6. a3 {[%emt 0:00:00]} Nf6 {[%emt 0:00:00]} 7. Nc3 {[%emt 0:00:00]} Be7 {[%emt 0:00:00]} 8. Be2 {[%emt 0:01:56]} O-O {[%emt 0:00:00]} 9. O-O {[%emt 0:01:55]} Qc7 {[%emt 0:03:00]} 10. Be3 {[%emt 0:13:56]} Rd8 {[%emt 0:05:02]} 11. f4 {[%emt 0:06:02]} d6 {[%emt 0:06:46]} 12. Qc2 {[%emt 0:06:57]} Bd7 {[%emt 0:05:55]} 13. f5 {[%emt 0:04:28]} Nxd4 {[%emt 0:05:54]} 14. Bxd4 {[%emt 0:00:34]} exf5 {[%emt 0:00:21]} 15. exf5 {[%emt 0:00:21]} Be8 {[%emt 0:08:30]} 16. Na4 {[%emt 0:08:54]} Bxa4 {[%emt 0:01:25]} 17. Qxa4 {[%emt 0:00:06]} d5 {[%emt 0:02:33]} 18. Rac1 {[%emt 0:05:05]} dxc4 {[%emt 0:04:52]} 19. Rxc4 {[%emt 0:00:29]} Qd7 {[%emt 0:00:37]} 20. Qxd7 {[%emt 0:03:07]} Rxd7 {[%emt 0:01:16]} 21. Re1 {[%emt 0:01:19]} Nd5 {[%emt 0:04:40]} 22. Bg4 {[%emt 0:03:04]} Bf6 {[%emt 0:00:40]} 23. Bxf6 {[%emt 0:00:48]} Nxf6 {[%emt 0:00:07]} 24. Rec1 {[%emt 0:00:45]} h6 {[%emt 0:04:08]} 25. Bf3 {[%emt 0:01:11]} Rad8 {[%emt 0:05:31]} 26. Rc8 {[%emt 0:01:23]} Rxc8 {[%emt 0:01:04]} 27. Rxc8+ {[%emt 0:00:03]} Kh7 {[%emt 0:00:07]} 28. Rb8 {[%emt 0:00:24]} b5 {[%emt 0:01:13]} 29. Rb6 {[%emt 0:00:46]} Rd2 {[%emt 0:00:47]} 30. b4 {[%emt 0:01:49] normal} Nd5 {[%emt 0:06:30]} 31. Rd6 {normal} 1-0

[Event "GER-ch Youth U12w 2019"]
[Site "Willingen"]
[Date "2019.06.12"]
[Round "6.1"]
[White "Peglau, Charis"]
[Black "Zhou, Lepu Coco"]
[Result "1/2-1/2"]
[ECO "A58"]
[WhiteElo "1514"]
[BlackElo "1724"]
[Annotator "NA"]
[PlyCount "48"]
[EventDate "2019.06.07"]
[EventType "swiss"]
[EventRounds "9"]
[EventCountry "GER"]
[SourceTitle "playchess.com"]
[Source "ChessBase"]
[SourceQuality "1"]
[TimeControl "40/4500+30:900+30"]

1. d4 {[%emt 0:00:00]} Nf6 {[%emt 0:00:00]} 2. c4 {[%emt 0:00:00]} c5 {[%emt 0:00:00]} 3. d5 b5 4. cxb5 {[%emt 0:00:00]} a6 {[%emt 0:00:00]} 5. bxa6 {[%emt 0:00:00]} g6 {[%emt 0:00:00]} 6. Nc3 {[%emt 0:00:00]} Bxa6 {[%emt 0:00:00]} 7. Bf4 {[%emt 0:00:00]} d6 {[%emt 0:00:00]} 8. Nf3 {[%emt 0:00:00]} Bg7 {[%emt 0:00:00]} 9. Qd2 {[%emt 0:00:00]} O-O {[%emt 0:00:00]} 10. e4 {[%emt 0:00:00]} Bxf1 {[%emt 0:00:00]} 11. Kxf1 {[%emt 0:00:00]} Re8 {[%emt 0:00:00]} 12. g3 {[%emt 0:00:00]} Nbd7 {[%emt 0:00:00]} 13. Kg2 {[%emt 0:00:00]} Nh5 {[%emt 0:00:00]} 14. Be3 {[%emt 0:00:00]} Qa5 {[%emt 0:00:00]} 15. Qc2 {[%emt 0:01:38]} Nb6 {[%emt 0:00:00]} 16. Nd2 {[%emt 0:02:03]} Reb8 {[%emt 0:00:00]} 17. a3 {[%emt 0:05:16]} Nf6 {[%emt 0:00:00]} 18. Rab1 {[%emt 0:01:43]} Ng4 {[%emt 0:01:28]} 19. Bf4 {[%emt 0:01:01]} Ne5 {[%emt 0:00:48]} 20. Bxe5 {[%emt 0:00:46]} Bxe5 {[%emt 0:00:10]} 21. f4 {[%emt 0:01:04]} Bg7 {[%emt 0:00:33]} 22. Rhc1 {[%emt 0:11:49]} Qa6 {[%emt 0:07:16]} 23. Re1 {[%emt 0:02:57]} Nc4 {[%emt 0:05:14]} 24. Nxc4 {[%emt 0:03:01]} Qxc4 {[%emt 0:00:07] normal} 1/2-1/2

[Event "GER-ch Youth U12w 2019"]
[Site "Willingen"]
[Date "2019.06.12"]
[Round "6.2"]
[White "Sereda, Yaroslava"]
[Black "Braeutigam, Katerina"]
[Result "0-1"]
[ECO "B01"]
[WhiteElo "1626"]
[BlackElo "1697"]
[Annotator "NA"]
[PlyCount "86"]
[EventDate "2019.06.07"]
[EventType "swiss"]
[EventRounds "9"]
[EventCountry "GER"]
[SourceTitle "playchess.com"]
[Source "ChessBase"]
[SourceQuality "1"]
[TimeControl "40/4500+30:900+30"]

1. e4 {[%emt 0:00:00]} d5 {[%emt 0:00:00]} 2. exd5 {[%emt 0:00:00]} Qxd5 {[%emt 0:00:00]} 3. Nc3 {[%emt 0:00:00]} Qa5 {[%emt 0:00:00]} 4. d4 {[%emt 0:00:00]} c6 {[%emt 0:00:00]} 5. Nf3 {[%emt 0:00:00]} Bf5 {[%emt 0:00:00]} 6. Ne5 {[%emt 0:00:00]} Nf6 {[%emt 0:00:00]} 7. g4 {[%emt 0:00:00]} Bg6 {[%emt 0:00:00]} 8. h4 {[%emt 0:00:00]} Nbd7 {[%emt 0:00:00]} 9. Nc4 {[%emt 0:00:50]} Qc7 {[%emt 0:02:33]} 10. h5 {[%emt 0:02:01]} Be4 {[%emt 0:00:10]} 11. Nxe4 {[%emt 0:00:13]} Nxe4 {[%emt 0:00:17]} 12. Qf3 {[%emt 0:00:36]} Nd6 {[%emt 0:04:17]} 13. Bf4 {[%emt 0:00:35]} Nf6 {[%emt 0:03:11]} 14. O-O-O {[%emt 0:14:05]} O-O-O {[%emt 0:02:38]} 15. g5 {[%emt 0:05:34]} Nd5 {[%emt 0:01:34]} 16. Bh3+ {[%emt 0:02:52]} e6 {[%emt 0:07:12]} 17. Bg3 {[%emt 0:03:12]} Be7 {[%emt 0:03:52]} 18. g6 {[%emt 0:06:47]} f5 {[%emt 0:10:26]} 19. Qe2 {[%emt 0:09:58]} Qd7 {[%emt 0:05:14]} 20. Ne5 {[%emt 0:01:22]} Qe8 {[%emt 0:04:04]} 21. Nf7 {[%emt 0:04:33]} Nxf7 {[%emt 0:05:37]} 22. Qxe6+ {[%emt 0:00:17]} Rd7 {[%emt 0:03:35]} 23. Bxf5 {[%emt 0:09:45]} Nh6 {[%emt 0:15:00]} 24. Qxd7+ {[%emt 0:01:02]} Qxd7 {[%emt 0:00:17]} 25. Bxd7+ {[%emt 0:00:01]} Kxd7 {[%emt 0:00:09]} 26. Be5 {[%emt 0:09:38]} Bf6 {[%emt 0:07:15]} 27. c4 {[%emt 0:02:03]} Ne7 {[%emt 0:01:19]} 28. Bxf6 {[%emt 0:06:20]} gxf6 {[%emt 0:00:08]} 29. gxh7 Rxh7 {[%emt 0:00:40]} 30. f3 {[%emt 0:05:21]} Nhf5 {[%emt 0:00:25]} 31. b3 {[%emt 0:01:44]} Ng7 {[%emt 0:03:07]} 32. Kc2 {[%emt 0:01:05]} Nxh5 {[%emt 0:02:25]} 33. Kc3 {[%emt 0:00:38]} Kd6 {[%emt 0:01:35]} 34. Rd2 {[%emt 0:00:31]} Nf5 {[%emt 0:00:39]} 35. d5 {[%emt 0:00:38]} Nfg3 {[%emt 0:01:09]} 36. dxc6+ {[%emt 0:00:15]} Kxc6 {[%emt 0:00:08]} 37. Re1 {[%emt 0:00:38]} Nf4 {[%emt 0:00:59]} 38. a3 {[%emt 0:00:32]} Nf5 {[%emt 0:02:36]} 39. Re4 {[%emt 0:00:38]} Rh4 {[%emt 0:00:58]} 40. b4 {[%emt 0:00:28]} Ng3 {[%emt 0:00:33]} 41. Re7 {[%emt 0:00:00]} Rh8 {[%emt 0:00:00]} 42. b5+ {[%emt 0:00:00]} Kc5 {[%emt 0:00:00]} 43. Kb3 {[%emt 0:06:07]} Nge2 {[%emt 0:06:46] normal} 0-1

[Event "GER-ch Youth U12w 2019"]
[Site "Willingen"]
[Date "2019.06.12"]
[Round "6.3"]
[White "Wilmink, Anna"]
[Black "Pohle, Saskia"]
[Result "0-1"]
[ECO "B23"]
[WhiteElo "1466"]
[BlackElo "1819"]
[Annotator "NA"]
[PlyCount "88"]
[EventDate "2019.06.07"]
[EventType "swiss"]
[EventRounds "9"]
[EventCountry "GER"]
[SourceTitle "playchess.com"]
[Source "ChessBase"]
[SourceQuality "1"]
[TimeControl "40/4500+30:900+30"]

1. e4 {[%emt 0:00:00]} c5 {[%emt 0:00:00]} 2. Nc3 {[%emt 0:00:00]} a6 {[%emt 0:00:00]} 3. g3 {[%emt 0:00:00]} b5 {[%emt 0:00:00]} 4. Bg2 {[%emt 0:00:00]} Bb7 {[%emt 0:00:00]} 5. d3 {[%emt 0:00:00]} e6 {[%emt 0:00:00]} 6. Nf3 {[%emt 0:00:00]} Be7 {[%emt 0:00:00]} 7. O-O {[%emt 0:00:00]} d5 {[%emt 0:00:00]} 8. exd5 {[%emt 0:00:00]} exd5 {[%emt 0:00:00]} 9. Re1 {[%emt 0:00:00]} Nf6 {[%emt 0:00:00]} 10. Nh4 {[%emt 0:00:00]} Qd7 {[%emt 0:00:00]} 11. Qe2 {[%emt 0:00:00]} Nc6 {[%emt 0:00:00]} 12. Bg5 {[%emt 0:00:00]} O-O {[%emt 0:05:58]} 13. Bxf6 {[%emt 0:11:00]} Bxf6 {[%emt 0:00:09]} 14. Nxd5 {[%emt 0:07:56]} Bxb2 {[%emt 0:03:25]} 15. Rab1 {[%emt 0:01:55]} Nd4 {[%emt 0:01:16]} 16. Qh5 {[%emt 0:01:45]} Bxd5 {[%emt 0:04:01]} 17. Qxd5 {[%emt 0:05:14]} Qxd5 {[%emt 0:00:27]} 18. Bxd5 {[%emt 0:00:30]} Rad8 {[%emt 0:00:23]} 19. Bg2 {[%emt 0:03:48]} Bc3 {[%emt 0:00:52]} 20. Re5 {[%emt 0:04:59]} Nxc2 {[%emt 0:04:59]} 21. Rxc5 {[%emt 0:03:53]} Nd4 {[%emt 0:00:57]} 22. Kf1 {[%emt 0:05:33]} Ba5 {[%emt 0:03:29]} 23. Rd1 {[%emt 0:03:25]} Rc8 {[%emt 0:03:26]} 24. Rd5 {[%emt 0:03:06]} Nc2 {[%emt 0:02:47]} 25. Rd6 {[%emt 0:02:51]} Nb4 {[%emt 0:02:39]} 26. a3 {[%emt 0:01:55]} Nc2 {[%emt 0:06:11]} 27. Rxa6 {[%emt 0:00:36]} Bc3 {[%emt 0:00:42]} 28. Bc6 {[%emt 0:05:22]} Nd4 {[%emt 0:00:27]} 29. Bd7 {[%emt 0:02:48]} Ra8 {[%emt 0:00:17]} 30. Rxa8 {[%emt 0:01:03]} Rxa8 {[%emt 0:03:05]} 31. Rb1 {[%emt 0:01:04]} Rxa3 {[%emt 0:06:59]} 32. Bxb5 {[%emt 0:00:51]} g5 {[%emt 0:00:46]} 33. Bc4 {[%emt 0:04:16]} gxh4 {[%emt 0:02:12]} 34. gxh4 {[%emt 0:00:56]} Ra1 {[%emt 0:01:33]} 35. Rxa1 {[%emt 0:00:41]} Bxa1 {[%emt 0:00:05]} 36. Kg2 {[%emt 0:00:54]} Nf5 {[%emt 0:01:06]} 37. Kh3 {[%emt 0:00:42]} Bd4 {[%emt 0:02:29]} 38. f3 {[%emt 0:00:33]} h5 {[%emt 0:02:04]} 39. Kg2 {[%emt 0:03:08]} Nxh4+ {[%emt 0:00:50]} 40. Kg3 {[%emt 0:00:55]} Ng6 {[%emt 0:00:13]} 41. f4 {[%emt 0:17:12]} Kg7 {[%emt 0:18:38]} 42. f5 {[%emt 0:04:01]} Be5+ {[%emt 0:02:11]} 43. Kh3 {[%emt 0:01:56]} Nf4+ {[%emt 0:01:12]} 44. Kh4 {[%emt 0:01:00]} f6 {[%emt 0:00:44] normal} 0-1

[Event "GER-ch Youth U12w 2019"]
[Site "Willingen"]
[Date "2019.06.12"]
[Round "6.4"]
[White "Fischer, Darja"]
[Black "Roncea, Andrea-Alexandra"]
[Result "1-0"]
[ECO "D53"]
[WhiteElo "1480"]
[BlackElo "1558"]
[Annotator "NA"]
[PlyCount "67"]
[EventDate "2019.06.07"]
[EventType "swiss"]
[EventRounds "9"]
[EventCountry "GER"]
[SourceTitle "playchess.com"]
[Source "ChessBase"]
[SourceQuality "1"]
[TimeControl "40/4500+30:900+30"]

1. d4 {[%emt 0:00:00]} d5 {[%emt 0:00:00]} 2. c4 {[%emt 0:00:00]} e6 {[%emt 0:00:00]} 3. Nc3 {[%emt 0:00:00]} Nf6 {[%emt 0:00:00]} 4. Bg5 {[%emt 0:00:00]} Be7 {[%emt 0:00:00]} 5. cxd5 {[%emt 0:00:00]} exd5 {[%emt 0:00:00]} 6. e3 {[%emt 0:00:00]} c6 {[%emt 0:00:00]} 7. Bd3 {[%emt 0:00:00]} O-O {[%emt 0:00:00]} 8. Qc2 {[%emt 0:00:00]} h6 {[%emt 0:00:00]} 9. Bh4 {[%emt 0:00:00]} Nbd7 {[%emt 0:00:00]} 10. h3 {[%emt 0:00:00]} Nb6 {[%emt 0:05:34]} 11. O-O-O {[%emt 0:00:00]} Nc4 {[%emt 0:01:34]} 12. g4 {[%emt 0:00:00]} Nd7 {[%emt 0:03:32]} 13. Bxe7 {[%emt 0:00:00]} Qxe7 {[%emt 0:00:12]} 14. h4 {[%emt 0:00:12]} b5 {[%emt 0:00:37]} 15. g5 {[%emt 0:02:15]} h5 {[%emt 0:02:41]} 16. Nh3 {[%emt 0:09:31]} a5 {[%emt 0:09:24]} 17. Ne2 {[%emt 0:06:29]} Bb7 {[%emt 0:03:07]} 18. Bh7+ {[%emt 0:02:49]} Kh8 {[%emt 0:03:42]} 19. Nhf4 {[%emt 0:00:20]} Nd6 {[%emt 0:05:39]} 20. Ng3 {[%emt 0:05:57]} Rac8 {[%emt 0:07:22]} 21. Kb1 {[%emt 0:01:13]} Qe8 {[%emt 0:02:10]} 22. Ngxh5 {[%emt 0:04:29]} Ne4 {[%emt 0:08:20]} 23. Bxe4 {[%emt 0:05:26]} dxe4 {[%emt 0:00:28]} 24. Ng3 {[%emt 0:00:58]} c5 {[%emt 0:00:59]} 25. Qe2 {[%emt 0:01:53]} c4 {[%emt 0:02:22]} 26. h5 {[%emt 0:03:58]} b4 {[%emt 0:01:59]} 27. g6 {[%emt 0:03:07]} Nf6 {[%emt 0:01:17]} 28. Rdg1 {[%emt 0:06:47]} c3 {[%emt 0:03:13]} 29. Nf5 {[%emt 0:04:21]} c2+ {[%emt 0:02:49]} 30. Kc1 {[%emt 0:00:37]} Qd7 {[%emt 0:01:13]} 31. Nxg7 {[%emt 0:02:20]} Kg8 {[%emt 0:04:28]} 32. h6 {[%emt 0:05:26]} b3 {[%emt 0:03:09]} 33. a3 {[%emt 0:02:43]} Nd5 {[%emt 0:02:57] normal} 34. Ngh5 {[%emt 0:06:37] normal} 1-0

[Event "GER-ch Youth U12w 2019"]
[Site "Willingen"]
[Date "2019.06.12"]
[Round "6.5"]
[White "Keymer, Cecilia"]
[Black "Adelmeyer, Nelly"]
[Result "1/2-1/2"]
[ECO "D35"]
[WhiteElo "1511"]
[BlackElo "1420"]
[Annotator "NA"]
[PlyCount "80"]
[EventDate "2019.06.07"]
[EventType "swiss"]
[EventRounds "9"]
[EventCountry "GER"]
[SourceTitle "playchess.com"]
[Source "ChessBase"]
[SourceQuality "1"]
[TimeControl "40/4500+30:900+30"]

1. d4 {[%emt 0:00:00]} d5 {[%emt 0:00:00]} 2. c4 {[%emt 0:00:00]} e6 {[%emt 0:00:00]} 3. Nc3 {[%emt 0:00:00]} Nf6 {[%emt 0:00:00]} 4. cxd5 {[%emt 0:00:00]} exd5 {[%emt 0:00:00]} 5. Bg5 {[%emt 0:00:00]} Be7 {[%emt 0:00:00]} 6. e3 {[%emt 0:00:00]} O-O {[%emt 0:00:00]} 7. Bd3 {[%emt 0:00:00]} Be6 {[%emt 0:00:00]} 8. Qc2 {[%emt 0:00:00]} h6 {[%emt 0:00:00]} 9. Bf4 {[%emt 0:00:00]} Nbd7 {[%emt 0:00:00]} 10. Nf3 {[%emt 0:00:00]} c6 {[%emt 0:00:00]} 11. h3 {[%emt 0:00:00]} Bb4 {[%emt 0:04:05]} 12. g4 {[%emt 0:02:00]} Bxc3+ {[%emt 0:03:27]} 13. Qxc3 {[%emt 0:00:30]} Ne4 {[%emt 0:00:37]} 14. Bxe4 {[%emt 0:05:19]} dxe4 {[%emt 0:00:06]} 15. Nd2 {[%emt 0:03:38]} Qe7 {[%emt 0:12:37]} 16. Nc4 {[%emt 0:09:39]} Bxc4 {[%emt 0:02:40]} 17. Qxc4 {[%emt 0:01:16]} Nb6 {[%emt 0:00:33]} 18. Qb3 {[%emt 0:04:56]} Nd5 {[%emt 0:00:53]} 19. O-O-O {[%emt 0:05:54]} Nb4 {[%emt 0:02:31]} 20. Kb1 {[%emt 0:04:32]} Nd3 {[%emt 0:01:25]} 21. Rh2 {[%emt 0:03:21]} a5 {[%emt 0:21:31]} 22. h4 {[%emt 0:05:01]} a4 {[%emt 0:04:12]} 23. Qc3 {[%emt 0:07:24]} a3 {[%emt 0:07:07]} 24. b3 {[%emt 0:02:56]} Rfc8 {[%emt 0:00:49]} 25. g5 {[%emt 0:03:10]} Qb4 {[%emt 0:04:53]} 26. Qxb4 {[%emt 0:07:11]} Nxb4 {[%emt 0:00:05]} 27. gxh6 {[%emt 0:01:43]} g6 {[%emt 0:03:42]} 28. h5 {[%emt 0:05:39]} Kh7 {[%emt 0:02:57]} 29. hxg6+ {[%emt 0:03:35]} fxg6 {[%emt 0:00:12]} 30. f3 {[%emt 0:02:24]} Nd5 {[%emt 0:02:58]} 31. Rc1 {[%emt 0:01:16]} exf3 {[%emt 0:01:22]} 32. Rf1 {[%emt 0:01:30]} Nxf4 {[%emt 0:01:02]} 33. exf4 {[%emt 0:00:09]} Rd8 {[%emt 0:00:18]} 34. Rd2 {[%emt 0:01:03]} Kxh6 {[%emt 0:01:24]} 35. Rxf3 {[%emt 0:00:33]} Rd5 {[%emt 0:00:13]} 36. Kc2 {[%emt 0:01:27]} Rf8 {[%emt 0:00:42]} 37. Kc3 {[%emt 0:01:22]} Kh5 {[%emt 0:01:37]} 38. Rf1 {[%emt 0:01:28]} Kg4 {[%emt 0:02:00]} 39. Rg1+ {[%emt 0:01:08]} Kf5 {[%emt 0:00:11]} 40. Rdg2 {[%emt 0:02:57]} Rg8 {[%emt 0:01:53] normal} 1/2-1/2

[Event "GER-ch Youth U12w 2019"]
[Site "Willingen"]
[Date "2019.06.12"]
[Round "6.6"]
[White "Ramien, Hannah"]
[Black "Trunz, Michelle"]
[Result "0-1"]
[ECO "B23"]
[WhiteElo "1296"]
[BlackElo "1505"]
[Annotator "NA"]
[PlyCount "38"]
[EventDate "2019.06.07"]
[EventType "swiss"]
[EventRounds "9"]
[EventCountry "GER"]
[SourceTitle "playchess.com"]
[Source "ChessBase"]
[SourceQuality "1"]
[TimeControl "40/4500+30:900+30"]

1. e4 c5 {[%emt 0:00:00]} 2. Nc3 {[%emt 0:00:00]} d6 {[%emt 0:00:00]} 3. f4 {[%emt 0:00:00]} Nc6 {[%emt 0:00:00]} 4. Nf3 {[%emt 0:00:00]} e6 {[%emt 0:00:00]} 5. Bb5 {[%emt 0:00:00]} Nge7 {[%emt 0:00:00]} 6. Bxc6+ {[%emt 0:00:00]} Nxc6 {[%emt 0:00:00]} 7. d3 {[%emt 0:00:00]} g6 {[%emt 0:00:00]} 8. O-O {[%emt 0:00:00]} Bg7 {[%emt 0:00:00]} 9. Kh1 {[%emt 0:00:00]} Nd4 {[%emt 0:00:00]} 10. Ne2 {[%emt 0:00:00]} Nxf3 {[%emt 0:00:00]} 11. Rxf3 {[%emt 0:00:00]} O-O {[%emt 0:00:00]} 12. Qe1 {[%emt 0:00:00]} f5 {[%emt 0:00:00]} 13. Nc3 {[%emt 0:00:00]} Re8 {[%emt 0:00:00]} 14. exf5 {[%emt 0:09:12]} exf5 {[%emt 0:00:00]} 15. Re3 {[%emt 0:00:18]} Bd7 {[%emt 0:00:00]} 16. Rxe8+ {[%emt 0:00:12]} Qxe8 {[%emt 0:00:00]} 17. Qxe8+ {[%emt 0:00:06]} Rxe8 {[%emt 0:00:00]} 18. Bd2 {[%emt 0:01:52]} Bxc3 {[%emt 0:00:00]} 19. Bxc3 {[%emt 0:00:23]} Re2 {[%emt 0:00:00] normal} 0-1

[Event "GER-ch Youth U12w 2019"]
[Site "Willingen"]
[Date "2019.06.12"]
[Round "6.7"]
[White "Petrosyan, Ani"]
[Black "Voigt, Anastasia"]
[Result "0-1"]
[ECO "A31"]
[WhiteElo "1378"]
[BlackElo "1447"]
[Annotator "NA"]
[PlyCount "134"]
[EventDate "2019.06.07"]
[EventType "swiss"]
[EventRounds "9"]
[EventCountry "GER"]
[SourceTitle "playchess.com"]
[Source "ChessBase"]
[SourceQuality "1"]
[TimeControl "40/4500+30:900+30"]

1. c4 {[%emt 0:00:00]} c5 {[%emt 0:00:00]} 2. Nf3 {[%emt 0:00:00]} Nf6 {[%emt 0:00:00]} 3. d4 {[%emt 0:00:00]} cxd4 {[%emt 0:00:00]} 4. Nxd4 {[%emt 0:00:00]} g6 {[%emt 0:00:00]} 5. Nc3 {[%emt 0:00:00]} Bg7 {[%emt 0:00:00]} 6. e4 {[%emt 0:00:00]} d6 {[%emt 0:00:00]} 7. Be3 {[%emt 0:00:00]} Bd7 {[%emt 0:00:00]} 8. Be2 {[%emt 0:00:00]} Nc6 {[%emt 0:00:00]} 9. O-O {[%emt 0:00:00]} O-O {[%emt 0:00:00]} 10. Rc1 {[%emt 0:00:00]} Rc8 {[%emt 0:00:00]} 11. Qd2 {[%emt 0:01:22]} a6 {[%emt 0:00:00]} 12. Rfd1 {[%emt 0:06:10]} Ne5 {[%emt 0:05:21]} 13. b3 {[%emt 0:09:13]} Nc6 {[%emt 0:06:12]} 14. h3 {[%emt 0:07:17]} Ne8 {[%emt 0:17:52]} 15. Nd5 {[%emt 0:11:54]} Nf6 {[%emt 0:10:50]} 16. Bf3 {[%emt 0:13:00]} Nxd5 {[%emt 0:05:01]} 17. exd5 {[%emt 0:01:36]} Ne5 {[%emt 0:01:54]} 18. Be2 {[%emt 0:00:54]} f5 {[%emt 0:01:28]} 19. f4 {[%emt 0:07:37]} Nf7 {[%emt 0:00:46]} 20. b4 {[%emt 0:03:37]} Qe8 {[%emt 0:05:20]} 21. c5 {[%emt 0:03:16]} dxc5 {[%emt 0:00:17]} 22. bxc5 {[%emt 0:00:16]} Nd8 {[%emt 0:01:25]} 23. Qb4 {[%emt 0:02:26]} e6 {[%emt 0:05:43]} 24. d6 {[%emt 0:02:55]} e5 {[%emt 0:00:52]} 25. fxe5 {[%emt 0:03:07]} Qxe5 {[%emt 0:00:32]} 26. Bc4+ {[%emt 0:00:58]} Kh8 {[%emt 0:00:36]} 27. Nc2 {[%emt 0:01:45]} Qg3 {[%emt 0:11:04]} 28. Bd5 {[%emt 0:04:07]} f4 {[%emt 0:02:27]} 29. Bf2 {[%emt 0:01:18]} Qg5 {[%emt 0:00:11]} 30. h4 {[%emt 0:01:55]} Qg4 {[%emt 0:01:14]} 31. Bf3 {[%emt 0:01:12]} Qe6 {[%emt 0:00:38]} 32. a3 {[%emt 0:00:38]} Qe8 {[%emt 0:05:37]} 33. Bxb7 {[%emt 0:01:24]} Rb8 {[%emt 0:00:32]} 34. Qa5 {[%emt 0:02:46]} Nxb7 {[%emt 0:00:36]} 35. Qxa6 {[%emt 0:00:14]} Bb5 {[%emt 0:00:58]} 36. Qb6 {[%emt 0:00:55]} Qc6 {[%emt 0:01:45]} 37. Qxc6 {[%emt 0:00:23]} Bxc6 {[%emt 0:00:01]} 38. Nb4 {[%emt 0:00:14]} Na5 {[%emt 0:00:41]} 39. Nxc6 {[%emt 0:01:01]} Nxc6 {[%emt 0:00:02]} 40. a4 {[%emt 0:00:21]} Ra8 {[%emt 0:01:23]} 41. d7 {[%emt 0:16:08]} Be5 {[%emt 0:00:00]} 42. Rb1 {[%emt 0:00:00]} Rxa4 {[%emt 0:00:00]} 43. Rb6 {[%emt 0:00:00]} Nd8 {[%emt 0:00:00]} 44. c6 {[%emt 0:00:00]} Bc7 {[%emt 0:00:00]} 45. Rb5 {[%emt 0:00:00]} Ra6 {[%emt 0:00:00]} 46. Rb2 {[%emt 0:00:00]} Rxc6 {[%emt 0:00:00]} 47. Re2 {[%emt 0:00:00]} Re6 {[%emt 0:00:00]} 48. Rc2 {[%emt 0:00:00]} Rc6 {[%emt 0:00:38]} 49. Re2 {[%emt 0:00:00]} Kg8 {[%emt 0:01:11]} 50. Bd4 {[%emt 0:00:00]} Kf7 {[%emt 0:02:13]} 51. Bb2 {[%emt 0:00:00]} Re6 {[%emt 0:00:35]} 52. Rf2 {[%emt 0:00:00]} Bb6 {[%emt 0:00:53]} 53. Bd4 {[%emt 0:00:00]} Re1+ {[%emt 0:06:02]} 54. Rxe1 {[%emt 0:00:00]} Bxd4 {[%emt 0:00:07]} 55. Re4 {[%emt 0:00:00]} Bxf2+ {[%emt 0:00:12]} 56. Kxf2 {[%emt 0:00:00]} Ne6 {[%emt 0:00:26]} 57. g3 {[%emt 0:00:00]} fxg3+ {[%emt 0:01:33]} 58. Kxg3 {[%emt 0:00:00]} Ke7 {[%emt 0:00:19]} 59. Re5 {[%emt 0:00:00]} Kxd7 {[%emt 0:00:43]} 60. Rd5+ {[%emt 0:00:00]} Ke7 {[%emt 0:00:13]} 61. Ra5 {[%emt 0:00:00]} Kf7 {[%emt 0:00:55]} 62. Ra7+ {[%emt 0:00:00]} Kg8 {[%emt 0:00:19]} 63. Re7 {[%emt 0:00:00]} Ng7 {[%emt 0:00:45]} 64. Kg4 {[%emt 0:00:10]} Nf5 {[%emt 0:00:24]} 65. Re5 {[%emt 0:00:40]} Nd6 {[%emt 0:01:15]} 66. h5 {[%emt 0:00:16]} Nf7 {[%emt 0:01:02]} 67. Rd5 {[%emt 0:00:30]} g5 {[%emt 0:00:36] normal} 0-1